fUSD/lending_fUSD_20260427
["ID","MTS","AMOUNT","RATE_DAILY","PERIOD"]
[421268522,1777303849127,-666.0,0.00032875,10]
[421268523,1777303849137,-20833.33,0.00032876,2]
[421268524,1777303849146,-20833.33,0.00032876,2]
[421268525,1777303849156,-20833.33,0.00032876,2]
[421268526,1777303849165,-20833.33,0.00032876,2]
[421268527,1777303849174,-20833.33,0.00032876,2]
[421268528,1777303849184,-20833.33,0.00032876,2]
[421268529,1777303849193,-20833.33,0.00032876,2]
[421268530,1777303849202,-20833.33,0.00032876,2]
[421268531,1777303849212,-20833.33,0.00032876,2]
[421268532,1777303849221,-20833.33,0.00032876,2]
[421268533,1777303849230,-20833.33,0.00032876,2]
[421268534,1777303849240,-20833.33,0.00032876,2]
[421268535,1777303849249,-20833.33,0.00032876,2]
[421268536,1777303849259,-20833.33,0.00032876,2]
[421268537,1777303849268,-20833.33,0.00032876,2]
[421268538,1777303849278,-20833.33,0.00032876,2]
[421268539,1777303849287,-20833.33,0.00032876,2]
[421268540,1777303849298,-20833.33,0.00032876,2]
[421268541,1777303849307,-20833.33,0.00032876,2]
[421268542,1777303849320,-20833.33,0.00032876,2]
[421268543,1777303849330,-20833.33,0.00032876,2]
[421268544,1777303849339,-20833.33,0.00032876,2]
[421268545,1777303849348,-20833.33,0.00032876,2]
[421268546,1777303849357,-20833.41,0.00032876,2]
[421268547,1777303849366,-151.0,0.00032876,7]
[421268548,1777303849376,-151.0,0.00032876,7]
[421268549,1777303849386,-151.0,0.00032876,7]
[421268550,1777303849396,-151.0,0.00032876,7]
[421268551,1777303849406,-151.0,0.00032876,7]
[421268552,1777303849415,-151.0,0.00032876,7]
[421268553,1777303849425,-151.0,0.00032876,7]
[421268554,1777303849434,-151.0,0.00032876,7]
[421268555,1777303849444,-151.0,0.00032876,7]
[421268556,1777303849453,-286.609152,0.00032876,7]
[421268557,1777303849463,-151.0,0.00032876,7]
[421268558,1777303849475,-151.0,0.00032876,7]
[421268559,1777303849485,-151.0,0.00032876,7]
[421268560,1777303849494,-151.0,0.00032876,7]
[421268561,1777303849504,-151.0,0.00032876,7]
[421268562,1777303849513,-151.0,0.00032876,7]
[421268563,1777303849524,-987.777,0.00032877,33]
[421268564,1777303849534,-1400.0,0.000329,12]
[421268565,1777303849543,-150.0,0.00033,14]
[421268566,1777303849552,-975.67,0.00033,2]
[421268567,1777303849562,-162.27045424,0.00033,7]
[421268568,1777303849571,-150.0,0.00033043,2]
[421268569,1777303849582,-1000.0,0.0003314,12]
[421268570,1777303849591,-1000.0,0.0003314,12]
[421268571,1777303849600,-1000.0,0.0003314,12]
[421268572,1777303849610,-1000.0,0.0003314,12]
[421268573,1777303849619,-1000.0,0.0003314,12]
[421268574,1777303849629,-1000.0,0.0003314,12]
[421268575,1777303849638,-1000.0,0.0003314,12]
[421268576,1777303849647,-1000.0,0.0003314,12]
[421268577,1777303849657,-159.0,0.00033159,30]
[421268578,1777303849666,-156.0,0.00033159,30]
[421268579,1777303849676,-424.0,0.00033159,30]
[421268580,1777303849686,-151.0,0.00033163,30]
[421268581,1777303849696,-151.0,0.00033163,30]
[421268582,1777303849705,-151.0,0.00033163,30]
[421268583,1777303849715,-178.0,0.00033163,30]
[421268584,1777303849725,-1150.34043456,0.00033395,2]
[421268585,1777303849735,-1512.38,0.000335,7]
[421268586,1777303849745,-280.0,0.00033808,32]
[421268587,1777303849757,-775.0,0.00033835,120]
[421268588,1777303849771,-775.0,0.00033835,120]
[421268589,1777303849782,-775.0,0.00033835,120]
[421268590,1777303849793,-775.0,0.00033835,120]
[421268591,1777303849803,-775.0,0.00033835,120]
[421268592,1777303849813,-775.0,0.00033835,120]
[421268593,1777303849823,-775.0,0.00033835,120]
[421268594,1777303849832,-775.0,0.00033835,120]
[421268595,1777303849842,-1132.0,0.00033835,120]
[421268596,1777303849852,-200.0,0.00034093,34]
[421268597,1777303849862,-159.0,0.00034159,30]
[421268598,1777303849874,-424.0,0.00034159,30]
[421268599,1777303849884,-151.0,0.00034163,30]
[421268600,1777303849894,-151.0,0.00034163,30]
[421268601,1777303849904,-151.0,0.00034163,30]
[421268602,1777303849914,-178.0,0.00034163,30]
[421268603,1777303849923,-12010.1,0.00034326,30]
[421268604,1777303849934,-1947.45,0.00034326,30]
[421268605,1777303849944,-160.0,0.000344,30]
[421268606,1777303849954,-150.0,0.00034696,2]
[421268607,1777303849964,-28291.16129541,0.000349,2]
[421268608,1777303849973,-200.0,0.00034958,3]
[421268609,1777303849983,-374.89770854,0.00034975,98]
[421268610,1777303849992,-160.0,0.00035,120]
[421268611,1777303850002,-500.0,0.00035114,120]
[421268612,1777303850011,-159.0,0.00035159,30]
[421268613,1777303850021,-424.0,0.00035159,30]
[421268614,1777303850031,-151.0,0.00035163,30]
[421268615,1777303850040,-151.0,0.00035163,30]
[421268616,1777303850050,-151.0,0.00035163,30]
[421268617,1777303850059,-178.0,0.00035163,30]
[421268618,1777303850069,-230.0,0.00035233,38]
[421268619,1777303850079,-157.5,0.000359,120]
[421268620,1777303850089,-2000.0,0.00036,36]
[421268621,1777303850100,-4088.18925508,0.00036049,100]
[421268622,1777303850109,-1138.94,0.00036132,30]
[421268623,1777303850121,-639.1,0.00036132,30]
[421268624,1777303850134,-348.82,0.00036132,30]
[421268625,1777303850144,-159.0,0.00036159,30]
[421268626,1777303850154,-424.0,0.00036159,30]
[421268627,1777303850164,-151.0,0.00036163,30]
[421268628,1777303850173,-151.0,0.00036163,30]
[421268629,1777303850183,-151.0,0.00036163,30]
[421268630,1777303850192,-178.0,0.00036163,30]
[421268631,1777303850202,-1150.34043456,0.00036341,2]
[421268632,1777303850212,-500.0,0.0003643,120]
[421268633,1777303850222,-150.0,0.0003643,2]
[421268634,1777303850233,-152.0,0.00036586,3]
[421268635,1777303850243,-521.98578422,0.00036776,120]
[421268636,1777303850253,-520.0436638,0.00036776,120]
[421268637,1777303850262,-155.91050308,0.00036776,120]
[421268638,1777303850272,-157.5,0.000369,120]
[421268639,1777303850281,-2000.0,0.00037,37]
[421268640,1777303850291,-150.0,0.00037081,120]
[421268641,1777303850300,-159.0,0.00037159,30]
[421268642,1777303850310,-424.0,0.00037159,30]
[421268643,1777303850319,-158.0,0.00037163,30]
[421268644,1777303850329,-151.0,0.00037163,30]
[421268645,1777303850339,-151.0,0.00037163,30]
[421268646,1777303850348,-178.0,0.00037163,30]
[421268647,1777303850358,-280.0,0.00037191,43]
[421268648,1777303850369,-536.4,0.00037524,7]
[421268649,1777303850379,-41616.13107167,0.00037525,2]
[421268650,1777303850393,-588.73395809,0.00037525,2]
[421268651,1777303850404,-4674.1142066,0.00037525,2]
[421268652,1777303850423,-150.0,0.00026375,21]
[421268653,1777303850433,-3397.43151558,0.00037525,2]
[421268654,1777303850444,-236043.19799097,0.00037525,2]
[421268655,1777303850455,-262.65565251,0.00037525,2]
[421268656,1777303850471,-32642.30866421,0.00037525,2]
[421268657,1777303850482,-7700.0,0.00037525,2]
[421268658,1777303850493,-7733.25,0.00037525,2]
[421268659,1777303850505,-2300.98016952,0.00037525,2]
[421268660,1777303850516,-45784.17929924,0.00037525,2]
[421268661,1777303850525,-250.429672,0.00037525,7]
[421268662,1777303850535,-151.0,0.00037525,7]
[421268663,1777303850544,-151.0,0.00037525,7]
[421268664,1777303850554,-151.0,0.00037525,7]
[421268665,1777303850563,-151.0,0.00037525,7]
[421268666,1777303850573,-151.0,0.00037525,7]
[421268667,1777303850646,-500.0,0.00037745,120]
[421268668,1777303850656,-975.67,0.000379,2]
[421268669,1777303850666,-157.5,0.000379,120]
[421268670,1777303850675,-2000.0,0.00038,38]
[421268671,1777303850684,-304.0,0.00038,120]
[421268672,1777303850694,-342.63708661,0.00038101,2]
[421268673,1777303850703,-342.63708661,0.00038101,2]
[421268674,1777303850712,-342.63708661,0.00038101,2]
[421268675,1777303850721,-342.63708661,0.00038101,2]
[421268676,1777303850730,-150.0,0.00038252,2]
[421268677,1777303850740,-330.8464,0.00038333,2]
[421268678,1777303850749,-324.84917296,0.00038356,2]
[421268679,1777303850758,-916.53212993,0.00038366,120]
[421268680,1777303850767,-16013.47,0.00038398,120]
[421268681,1777303850777,-1512.38,0.000384,7]
[421268682,1777303850788,-28291.16129541,0.000384,2]
[421268683,1777303850797,-916.53212993,0.0003864,120]
[421268684,1777303850807,-8132.64551732,0.000388,2]
[421268685,1777303850816,-211.94423162,0.000388,2]
[421268686,1777303850826,-157.5,0.000389,120]
[421268687,1777303850835,-1900.0,0.000389,14]
[421268688,1777303850844,-260.0,0.00038904,60]
[421268689,1777303850854,-916.53212993,0.00038914,120]
[421268690,1777303850863,-500.0,0.00038923,120]
[421268691,1777303850874,-500.0,0.00038999,2]
[421268692,1777303850884,-1000.0,0.00039,30]
[421268693,1777303850894,-759.0,0.00039,30]
[421268694,1777303850903,-1002.0,0.00039,30]
[421268695,1777303850913,-2019.0,0.00039,120]
[421268696,1777303850923,-2179.0,0.00039,120]
[421268697,1777303850933,-2000.0,0.00039,39]
[421268698,1777303850944,-441.515164,0.00039043,21]
[421268699,1777303850954,-975.67,0.000391,2]
[421268700,1777303850963,-916.53212993,0.00039188,120]
[421268701,1777303850973,-21465.574196,0.00039203,120]
[421268702,1777303850982,-240.0,0.00039233,65]
[421268703,1777303850991,-1150.34043456,0.00039288,2]
[421268704,1777303851001,-330.8464,0.00039291,2]
[421268705,1777303851011,-188.393454,0.00039345,32]
[421268706,1777303851020,-280.0,0.00039387,60]
[421268707,1777303851031,-916.53212993,0.00039462,120]
[421268708,1777303851040,-2000.0,0.000395,40]
[421268709,1777303851050,-250.0,0.00039507,75]
[421268710,1777303851060,-250.0,0.00039507,75]
[421268711,1777303851070,-1512.37,0.000396,7]
[421268712,1777303851079,-159.0,0.00039616,120]
[421268713,1777303851089,-200.0,0.00039679,20]
[421268714,1777303851098,-200.0,0.0003968,20]
[421268715,1777303851108,-200.0,0.0003968,20]
[421268716,1777303851117,-200.0,0.0003968,20]
[421268717,1777303851128,-200.0,0.0003968,20]
[421268718,1777303851138,-500.0,0.00039686,60]
[421268719,1777303851148,-1512.38,0.000397,7]
[421268720,1777303851158,-916.53212993,0.00039736,120]
[421268721,1777303851167,-1000.0,0.00039748,31]
[421268722,1777303851178,-250.0,0.0003989,90]
[421268723,1777303851187,-157.5,0.000399,120]
[421268724,1777303851197,-238550.57299699,0.000399,20]
[421268725,1777303851207,-160.80602638,0.000399,2]
[421268726,1777303851217,-9685.41102096,0.000399,2]
[421268727,1777303851227,-244.693253,0.000399,30]
[421268728,1777303851237,-161.0,0.0003999,120]
[421268729,1777303851246,-500.0,0.00039998,30]
[421268730,1777303851256,-151.0,0.00039998,30]
[421268731,1777303851265,-1377.42282659,0.00039998,30]
[421268732,1777303851275,-500.0,0.00039998,30]
[421268733,1777303851284,-151.0,0.00039998,30]
[421268734,1777303851294,-201.93286099,0.00039998,30]
[421268735,1777303851304,-500.0,0.00039998,30]
[421268736,1777303851313,-1063.25963628,0.00039999,30]
[421268737,1777303851323,-150.0,0.00039999,120]
[421268738,1777303851332,-64663.37629205,0.0004,120]
[421268739,1777303851342,-40207.11396891,0.0004,6]
[421268740,1777303851351,-126000.0,0.0004,14]
[421268741,1777303851361,-49430.60848672,0.0004,120]
[421268742,1777303851371,-10000.0,0.0004,10]
[421268743,1777303851381,-193146.87696749,0.0004,30]
[421268744,1777303851390,-200.0,0.0004,120]
[421268745,1777303851399,-25542.6112051,0.0004,30]
[421268746,1777303851408,-161.0,0.0004,120]
[421268747,1777303851418,-5960.54308998,0.0004,120]
[421268748,1777303851427,-17372.18287872,0.0004,120]
[421268749,1777303851437,-31888.03031317,0.0004,120]
[421268750,1777303851447,-1043.30725442,0.0004,120]
[421268751,1777303851456,-2012.35,0.0004,60]
[421268752,1777303851465,-1533.0,0.0004,14]
[421268753,1777303851474,-1533.0,0.0004,14]
[421268754,1777303851484,-1533.0,0.0004,14]
[421268755,1777303851493,-1533.0,0.0004,14]
[421268756,1777303851504,-1533.0,0.0004,14]
[421268757,1777303851513,-1533.0,0.0004,14]
[421268758,1777303851522,-1533.0,0.0004,14]
[421268759,1777303851531,-1533.0,0.0004,14]
[421268760,1777303851541,-1533.0,0.0004,14]
[421268761,1777303851551,-1533.0,0.0004,14]
[421268762,1777303851560,-1533.0,0.0004,14]
[421268763,1777303851569,-1533.0,0.0004,14]
[421268764,1777303851578,-1524.7258936,0.0004,14]
[421268765,1777303851588,-10783.0,0.0004,120]
[421268766,1777303851597,-162.27045424,0.0004,7]
[421268767,1777303851607,-1337.98,0.0004,14]
[421268768,1777303851616,-500.0,0.0004,120]
[421268769,1777303851627,-500.0,0.0004,120]
[421268770,1777303851636,-500.0,0.0004,120]
[421268771,1777303851646,-500.0,0.0004,120]
[421268772,1777303851655,-500.0,0.0004,120]
[421268773,1777303851664,-500.0,0.0004,120]
[421268774,1777303851674,-500.0,0.0004,120]
[421268775,1777303851683,-500.0,0.0004,120]
[421268776,1777303851693,-500.0,0.0004,120]
[421268777,1777303851703,-500.0,0.0004,120]
[421268778,1777303851712,-500.0,0.0004,120]
[421268779,1777303851722,-500.0,0.0004,120]
[421268780,1777303851731,-500.0,0.0004,120]
[421268781,1777303851740,-500.0,0.0004,120]
[421268782,1777303851750,-500.0,0.0004,120]
[421268783,1777303851759,-500.0,0.0004,120]
[421268784,1777303851768,-500.0,0.0004,120]
[421268785,1777303851778,-500.0,0.0004,120]
[421268786,1777303851787,-500.0,0.0004,120]
[421268787,1777303851797,-500.0,0.0004,120]
[421268788,1777303851806,-500.0,0.0004,120]
[421268789,1777303851815,-500.0,0.0004,120]
[421268790,1777303851825,-500.0,0.0004,120]
[421268791,1777303851835,-551.52449879,0.0004,120]
[421268792,1777303851845,-916.53212993,0.0004001,120]
[421268793,1777303851854,-150.0,0.00040165,2]
[421268794,1777303851863,-223.85,0.00040189,90]
[421268795,1777303851874,-150.0,0.00040189,90]
[421268796,1777303851884,-186.87,0.00040189,90]
[421268797,1777303851894,-225.6,0.00040189,90]
[421268798,1777303851903,-1512.38,0.000402,7]
[421268799,1777303851912,-340.32,0.00040219,90]
[421268800,1777303851922,-150.0,0.00040235,120]
[421268801,1777303851931,-180.63,0.00040235,120]
[421268802,1777303851940,-273.94,0.00040235,120]
[421268803,1777303851950,-200.0,0.00040235,120]
[421268804,1777303851960,-212.84,0.00040235,120]
[421268805,1777303851969,-279.94,0.00040235,120]
[421268806,1777303851979,-150.0,0.00040235,120]
[421268807,1777303851988,-330.8465,0.0004025,2]
[421268808,1777303851997,-916.53212993,0.00040284,120]
[421268809,1777303852007,-1639.2,0.000403,90]
[421268810,1777303852016,-1337.98,0.000403,14]
[421268811,1777303852033,-1337.98,0.000403,14]
[421268812,1777303852048,-250.0,0.00040411,90]
[421268813,1777303852060,-2596.6,0.00040419,120]
[421268814,1777303852071,-19830.85656988,0.00040547,15]
[421268815,1777303852081,-25000.0,0.00040547,15]
[421268816,1777303852091,-25000.0,0.00040547,15]
[421268817,1777303852101,-916.53212993,0.00040558,120]
[421268818,1777303852112,-500.0,0.00040575,30]
[421268819,1777303852124,-151.0,0.00040575,30]
[421268820,1777303852134,-1328.27659266,0.00040575,30]
[421268821,1777303852145,-500.0,0.00040575,30]
[421268822,1777303852155,-151.0,0.00040575,30]
[421268823,1777303852165,-194.72792766,0.00040575,30]
[421268824,1777303852175,-500.0,0.00040575,30]
[421268825,1777303852185,-20850.75,0.000406,120]
[421268826,1777303852195,-1444.0,0.00040658,120]
[421268827,1777303852206,-1337.98,0.000407,14]
[421268828,1777303852216,-250.0,0.00040712,90]
[421268829,1777303852226,-280.0,0.00040814,83]
[421268830,1777303852236,-916.53212993,0.00040832,120]
[421268831,1777303852247,-500.0,0.00040853,60]
[421268832,1777303852258,-250.0,0.00040858,90]
[421268833,1777303852267,-157.5,0.000409,120]
[421268834,1777303852277,-1337.98,0.000409,14]
[421268835,1777303852287,-277.85848287,0.0004094,7]
[421268836,1777303852297,-226145.0,0.0004095,60]
[421268837,1777303852307,-10783.0,0.00041,120]
[421268838,1777303852317,-1337.98,0.00041,14]
[421268839,1777303852327,-1236.0,0.00041,30]
[421268840,1777303852337,-250.0,0.00041027,90]
[421268841,1777303852346,-9685.41102094,0.00041068,2]
[421268842,1777303852356,-1642.67024419,0.00041095,30]
[421268843,1777303852366,-3535.69145908,0.00041095,30]
[421268844,1777303852378,-500.0,0.00041095,30]
[421268845,1777303852388,-151.0,0.00041095,30]
[421268846,1777303852398,-500.0,0.00041095,30]
[421268847,1777303852407,-1280.88388878,0.00041095,30]
[421268848,1777303852417,-151.0,0.00041095,30]
[421268849,1777303852427,-187.78006525,0.00041095,30]
[421268850,1777303852437,-273.34052324,0.00041095,30]
[421268851,1777303852447,-500.0,0.00041095,30]
[421268852,1777303852457,-250.0,0.00041096,100]
[421268853,1777303852468,-296.83,0.00041096,90]
[421268854,1777303852477,-151.0,0.00041096,120]
[421268855,1777303852487,-151.0,0.00041096,120]
[421268856,1777303852497,-170.8634,0.00041096,120]
[421268857,1777303852506,-151.0,0.00041096,120]
[421268858,1777303852516,-151.0,0.00041096,120]
[421268859,1777303852525,-151.0,0.00041096,120]
[421268860,1777303852535,-151.0,0.00041096,120]
[421268861,1777303852545,-151.0,0.00041096,120]
[421268862,1777303852554,-151.0,0.00041096,120]
[421268863,1777303852564,-151.0,0.00041096,120]
[421268864,1777303852574,-151.0,0.00041096,120]
[421268865,1777303852584,-151.0,0.00041096,120]
[421268866,1777303852594,-229.980357,0.00041096,120]
[421268867,1777303852603,-915.433591,0.00041096,120]
[421268868,1777303852613,-915.433591,0.00041096,120]
[421268869,1777303852623,-915.433591,0.00041096,120]
[421268870,1777303852632,-915.433591,0.00041096,120]
[421268871,1777303852642,-915.433591,0.00041096,120]
[421268872,1777303852652,-915.433591,0.00041096,120]
[421268873,1777303852661,-915.433591,0.00041096,120]
[421268874,1777303852671,-915.433591,0.00041096,120]
[421268875,1777303852680,-915.433591,0.00041096,120]
[421268876,1777303852690,-915.433591,0.00041096,120]
[421268877,1777303852700,-915.433591,0.00041096,120]
[421268878,1777303852710,-915.433591,0.00041096,120]
[421268879,1777303852719,-915.433591,0.00041096,120]
[421268880,1777303852730,-915.433591,0.00041096,120]
[421268881,1777303852739,-915.433591,0.00041096,120]
[421268882,1777303852750,-915.433591,0.00041096,120]
[421268883,1777303852760,-915.433591,0.00041096,120]
[421268884,1777303852770,-915.433591,0.00041096,120]
[421268885,1777303852779,-915.433591,0.00041096,120]
[421268886,1777303852789,-915.433584,0.00041096,120]
[421268887,1777303852798,-328.093918,0.00041096,120]
[421268888,1777303852808,-328.093918,0.00041096,120]
[421268889,1777303852818,-328.093918,0.00041096,120]
[421268890,1777303852829,-328.093918,0.00041096,120]
[421268891,1777303852839,-328.093918,0.00041096,120]
[421268892,1777303852849,-328.093918,0.00041096,120]
[421268893,1777303852859,-328.093918,0.00041096,120]
[421268894,1777303852870,-328.093918,0.00041096,120]
[421268895,1777303852880,-328.093918,0.00041096,120]
[421268896,1777303852889,-328.093918,0.00041096,120]
[421268897,1777303852899,-328.093918,0.00041096,120]
[421268898,1777303852909,-328.093918,0.00041096,120]
[421268899,1777303852919,-328.093918,0.00041096,120]
[421268900,1777303852929,-328.093918,0.00041096,120]
[421268901,1777303852938,-328.093918,0.00041096,120]
[421268902,1777303852948,-328.093918,0.00041096,120]
[421268903,1777303852959,-328.093918,0.00041096,120]
[421268904,1777303852968,-328.093918,0.00041096,120]
[421268905,1777303852979,-328.093918,0.00041096,120]
[421268906,1777303852989,-328.093922,0.00041096,120]
[421268907,1777303852999,-151.0,0.00041096,120]
[421268908,1777303853009,-151.0,0.00041096,120]
[421268909,1777303853020,-151.0,0.00041096,120]
[421268910,1777303853029,-151.0,0.00041096,120]
[421268911,1777303853039,-259.621689,0.00041096,120]
[421268912,1777303853048,-741.048391,0.00041096,120]
[421268913,1777303853058,-741.048391,0.00041096,120]
[421268914,1777303853069,-741.048391,0.00041096,120]
[421268915,1777303853079,-717.156991,0.00041096,120]
[421268916,1777303853088,-741.048391,0.00041096,120]
[421268917,1777303853098,-717.156991,0.00041096,120]
[421268918,1777303853111,-741.048391,0.00041096,120]
[421268919,1777303853121,-717.156991,0.00041096,120]
[421268920,1777303853132,-741.048391,0.00041096,120]
[421268921,1777303853142,-717.156991,0.00041096,120]
[421268922,1777303853153,-741.048391,0.00041096,120]
[421268923,1777303853163,-151.0,0.00041096,120]
[421268924,1777303853174,-717.156991,0.00041096,120]
[421268925,1777303853184,-741.048391,0.00041096,120]
[421268926,1777303853194,-151.0,0.00041096,120]
[421268927,1777303853204,-717.156991,0.00041096,120]
[421268928,1777303853214,-741.048391,0.00041096,120]
[421268929,1777303853224,-151.0,0.00041096,120]
[421268931,1777303853234,-717.156991,0.00041096,120]
[421268932,1777303853244,-741.048391,0.00041096,120]
[421268934,1777303853254,-151.0,0.00041096,120]
[421268935,1777303853264,-717.156991,0.00041096,120]
[421268936,1777303853273,-741.048391,0.00041096,120]
[421268937,1777303853284,-151.0,0.00041096,120]
[421268938,1777303853294,-717.156991,0.00041096,120]
[421268939,1777303853304,-741.048391,0.00041096,120]
[421268940,1777303853315,-151.0,0.00041096,120]
[421268941,1777303853325,-717.156991,0.00041096,120]
[421268942,1777303853335,-741.048391,0.00041096,120]
[421268943,1777303853345,-159.280313,0.00041096,120]
[421268944,1777303853355,-717.156991,0.00041096,120]
[421268945,1777303853365,-741.048391,0.00041096,120]
[421268946,1777303853376,-717.156991,0.00041096,120]
[421268947,1777303853387,-741.048391,0.00041096,120]
[421268948,1777303853396,-717.156991,0.00041096,120]
[421268949,1777303853406,-741.048391,0.00041096,120]
[421268950,1777303853415,-741.048391,0.00041096,120]
[421268951,1777303853424,-717.156991,0.00041096,120]
[421268952,1777303853434,-741.048391,0.00041096,120]
[421268953,1777303853444,-717.156991,0.00041096,120]
[421268954,1777303853453,-741.048391,0.00041096,120]
[421268955,1777303853462,-717.156991,0.00041096,120]
[421268956,1777303853471,-717.156991,0.00041096,120]
[421268957,1777303853480,-741.048394,0.00041096,120]
[421268958,1777303853490,-717.156991,0.00041096,120]
[421268959,1777303853499,-717.156991,0.00041096,120]
[421268960,1777303853508,-717.156985,0.00041096,120]
[421268961,1777303853517,-189.82,0.00041098,2]
[421268962,1777303853526,-916.53212993,0.00041106,120]
[421268963,1777303853536,-203.305027,0.00041191,21]
[421268964,1777303853545,-2300.0,0.000413,15]
[421268965,1777303853554,-7359.42123437,0.00041318,42]
[421268967,1777303853564,-6121.23989774,0.00041318,13]
[421268968,1777303853573,-6121.23989768,0.00041318,13]
[421268969,1777303853582,-6121.23989768,0.00041318,13]
[421268970,1777303853591,-6121.23989768,0.00041318,13]
[421268971,1777303853600,-6121.23989768,0.00041318,13]
[421268972,1777303853609,-6121.23989768,0.00041318,13]
[421268973,1777303853620,-6121.23989768,0.00041318,13]
[421268974,1777303853628,-6121.23989768,0.00041318,13]
[421268975,1777303853638,-6121.23989768,0.00041318,13]
[421268976,1777303853647,-6121.23989768,0.00041318,13]
[421268977,1777303853656,-6121.23989768,0.00041318,13]
[421268978,1777303853666,-6121.23989768,0.00041318,13]
[421268979,1777303853675,-6121.23989768,0.00041318,13]
[421268980,1777303853684,-200.0,0.00041341,120]
[421268981,1777303853693,-500.0,0.00041356,120]
[421268982,1777303853703,-500.0,0.00041356,120]
[421268983,1777303853712,-500.0,0.00041356,120]
[421268984,1777303853721,-916.53212993,0.0004138,120]
[421268985,1777303853730,-10000.0,0.000414,30]
[421268986,1777303853739,-400.0,0.000414,15]
[421268987,1777303853748,-759.29,0.00041452,120]
[421268988,1777303853758,-426.06,0.00041452,120]
[421268989,1777303853768,-1298.3,0.00041452,120]
[421268990,1777303853778,-232.55,0.00041452,120]
[421268991,1777303853788,-10000.0,0.000415,30]
[421268992,1777303853796,-4000.0,0.000415,120]
[421268993,1777303853806,-400.0,0.000415,15]
[421268994,1777303853815,-250.0,0.00041534,100]
[421268995,1777303853824,-10000.0,0.000416,30]
[421268996,1777303853834,-400.0,0.000416,15]
[421268997,1777303853843,-160.66,0.00041644,30]
[421268998,1777303853852,-1850.44,0.00041644,120]
[421268999,1777303853862,-10000.0,0.000417,30]
[421269000,1777303853872,-10727.0,0.000417,117]
[421269001,1777303853882,-400.0,0.000417,15]
[421269002,1777303853891,-280.0,0.0004174,92]
[421269003,1777303853901,-159.15,0.000418,30]
[421269004,1777303853911,-284.7,0.000418,31]
[421269005,1777303853920,-1020.0,0.000418,15]
[421269006,1777303853929,-250.0,0.00041808,110]
[421269007,1777303853939,-300.0,0.00041872,120]
[421269008,1777303853948,-300.0,0.00041872,120]
[421269009,1777303853957,-150.0,0.00041873,120]
[421269010,1777303853967,-177.67430597,0.00041873,120]
[421269011,1777303853977,-300.0,0.00041873,120]
[421269012,1777303853986,-263.37902068,0.00041873,120]
[421269013,1777303853995,-380459.73278185,0.000419,120]
[421269014,1777303854248,-2470.0,0.0002988,10]
[421269015,1777303854258,-1048.83558451,0.000419,120]
[421269016,1777303854348,-150.50660597,0.00026375,21]
[421269017,1777303854358,-297.185,0.00030841,2]
[421269018,1777303854366,-308.8065746,0.00032844,2]
[421269019,1777303854378,-426.4134254,0.00032844,2]
[421269020,1777303854388,-3415.29,0.00032866,10]
[421269021,1777303854397,-2371.0,0.00041096,60]
[421269022,1777303854406,-6806.48009437,0.000419,120]
[421269023,1777303854415,-17627.55770956,0.000419,120]
[421269024,1777303854424,-10000.0,0.000419,30]